Workbook

Sheet Sheet1
A1: 主材招标采购报价单招标编号：TYZB-2022-002
A2: 招标单位：山东铁鹰建设工程有限公司 联系人：李强 0538-6629816 18553806339
A3: 投标地址：tieyingzhaobiao@139.com 开标时间：2022-5-30 13:30
A4: 报价单位（盖章）： 联系人：
A5: 注意以上报价内容为（不可更改无二次报价机会）：1、国标货、 送到济南济阳方垠智装厂区内（销售单至少两份、红章材质书随货同行）、过磅含税含运费价；2、付款方式为货到需方质检合格、收货后付款（收货三日内）；3、收货方式按照需方过磅重量（磅差千分之一以内）电汇结算；4、结算前需提供原厂材质书（红章）、购销合同、收据、发票等相关凭据；5、供货周期为三日内到全；6、本次报价请各报价单位按照自己公司优势选着性报价，同时允许多个包件同时报价，我公司按照单项低价选择中标。
A6: 方垠智装 材料需求计划表 | J6: 要求 | K6: 供应商填
A7: 工程名称：中水三局菲律宾项目胶带机栈桥38#-49# | G7: 采购计划编号：05-05 | K7: 报价 | L7: 品牌 | M7: 下差 | N7: 其他备注
A8: 类型1 | B8: 序号 | C8: 材质 | D8: 板厚（mm） | E8: 板宽（mm） | F8: 板长（mm） | G8: 张数 | H8: 重量（T） | I8: 备注
A9: 板材 | B9: 1 | C9: Q235B | D9: 3 | H9: 0.460
B10: 2 | C10: Q235B | D10: 4 | H10: 0.100
B11: 3 | C11: Q235B | D11: 6 | H11: 0.934
B12: 4 | C12: Q235B | D12: 8 | H12: 2.531
B13: 5 | C13: Q235B | D13: 10 | H13: 13.381
B14: 6 | C14: Q235B | D14: 12 | H14: 21.817
B15: 7 | C15: Q235B | D15: 14 | H15: 2.005
B16: 8 | C16: Q235B | D16: 16 | H16: 7.252
B17: 9 | C17: Q235B | D17: 18 | H17: 0.415
B18: 10 | C18: Q235B | D18: 20 | H18: 3.805
B19: 11 | C19: Q235B | D19: 25 | H19: 0.045
B20: 12 | C20: Q235B | D20: 30 | H20: 0.933
B21: 13 | C21: 小计 | H21: =SUM(H9:H20) -> 53.679
A22: 类型2 | B22: 序号 | C22: 材质 | D22: 规格（mm） | F22: 宽度（mm） | G22: 数量 | H22: 重量（T） | I22: 备注
A23: 型材 | B23: 1 | C23: 花纹钢板（Q235B） | D23: 5 | F23: 1500 | H23: 4.505
B24: 2 | C24: 角钢（Q235B） | D24: L40*40*4 | H24: 0.905
B25: 3 | C25: 角钢（Q235B） | D25: L45*45*5 | E25: L45*45*5 | H25: 0.379
B26: 4 | C26: 角钢（Q235B） | D26: L50*50*4 | E26: L50*50*4 | H26: 2.466
B27: 5 | C27: 角钢（Q235B） | D27: L50*50*5 | E27: L50*50*5 | H27: 0.212
B28: 6 | C28: 角钢（Q235B） | D28: L63*63*5 | E28: L63*63*5 | H28: 16.965
B29: 7 | C29: 角钢（Q235B） | D29: L63*63*6 | E29: L63*63*6 | H29: 0.990
B30: 8 | C30: 角钢（Q235B） | D30: L70*70*6 | E30: L70*70*6 | H30: 0.356
B31: 9 | C31: 角钢（Q235B） | D31: L75*75*8 | E31: L75*75*8 | H31: 3.195
B32: 10 | C32: 角钢（Q235B） | D32: L80*80*6 | E32: L80*80*6 | H32: 0.047
B33: 11 | C33: 角钢（Q235B） | D33: L80*80*8 | E33: L80*80*8 | H33: 3.619
B34: 12 | C34: 角钢（Q235B） | D34: L90*90*8 | E34: L90*90*8 | H34: 19.171
B35: 13 | C35: 角钢（Q235B） | D35: L100*100*10 | E35: L100*100*10 | H35: 24.242
B36: 14 | C36: 角钢（Q235B） | D36: L125*125*14 | E36: L125*125*14 | H36: 5.180
B37: 15 | C37: 槽钢（Q235B） | D37: 【10# | E37: 【10# | H37: 0.288
B38: 16 | C38: 槽钢（Q235B） | D38: 【12.6# | E38: 【12.6# | H38: 0.049
B39: 17 | C39: 槽钢（Q235B） | D39: 【14a# | E39: 【14a# | H39: 3.405
B40: 18 | C40: 槽钢（Q235B） | D40: 【16b# | E40: 【16b# | H40: 9.492
B41: 19 | C41: 槽钢（Q235B） | D41: 【20a# | E41: 【20a# | H41: 8.575
B42: 20 | C42: 槽钢（Q235B） | D42: 【28a# | E42: 【28a# | H42: 1.221
B43: 21 | C43: 工字钢（Q235B） | D43: 工14# | E43: 工14# | H43: 0.014
B44: 22 | C44: 热轧H型钢（Q235B） | D44: HN300*150*6.5*9 | E44: HN300*150*6.5*9 | H44: 1.042
B45: 23 | C45: 热轧H型钢（Q235B） | D45: HW175*175*7.5*11 | E45: HW175*175*7.5*11 | H45: 62.914
B46: 24 | C46: 热轧H型钢（Q235B） | D46: HW300*300*10*15 | E46: HW300*300*10*15 | H46: 1.074
B47: 25 | C47: 热轧H型钢（Q235B） | D47: HM390*300*10*16 | E47: HM390*300*10*16 | H47: 3.895
B48: 26 | C48: 热轧H型钢（Q235B） | D48: HM440*300*11*18 | E48: HM440*300*11*18 | H48: 5.764
B49: 27 | C49: 热轧H型钢（Q235B） | D49: HW350*350*12*19 | E49: HW350*350*12*19 | H49: 15.450
B50: 28 | C50: 热轧H型钢（Q235B） | D50: HN400*200*8*13 | E50: HN400*200*8*13 | H50: 1.414
B51: 29 | C51: 热轧H型钢（Q235B） | D51: HW400*400*13*21 | E51: HW400*400*13*21 | H51: 9.861
B52: 30 | C52: 钢管（Q235B） | D52: Φ30*2钢管 | E52: Φ30*2钢管 | H52: 0.338
B53: 31 | C53: 钢管（Q235B） | D53: Φ34*2钢管 | E53: Φ34*2钢管 | H53: 0.377
B54: 32 | C54: 钢管（Q235B） | D54: Φ133*6钢管 | E54: Φ133*6钢管 | H54: 91.600
B55: 33 | C55: 钢管（Q235B） | D55: Φ168*8钢管 | E55: Φ168*8钢管 | H55: 4.853
B56: 34 | C56: 钢管（Q235B） | D56: Φ198*4钢管 | E56: Φ198*4钢管 | H56: 0.235
B57: 35 | C57: 钢管（Q235B） | D57: Φ194*8钢管 | E57: Φ194*8钢管 | H57: 16.939
B58: 36 | C58: 钢管（Q235B） | D58: Φ219*10钢管 | E58: Φ219*10钢管 | H58: 68.183
B59: 37 | C59: 3mm板条（Q235B） | D59: 3*140 | H59: 0.584
B60: 38 | C60: 6mm板条（Q235B） | D60: 6*30 | H60: 0.005
B61: 39 | C61: 6mm钢板网 | D61: 40*80 | H61: 6.110
B62: 40 | C62: 小计 | H62: =SUM(H23:H61) -> 395.913 | I62: 平板状
A63: 合计 | H63: =H21+H62 -> 449.592
A64: 注：1、钢材应符合标准：Q235钢--国标《碳素结构钢》GB/T700-2006；Q355钢--国标《低合金高强度结 构钢》GB/T1591-2018；Q235B花纹钢板--《花纹钢板》GB/T3277-1991； 2、型材采用标准：H型钢--国标《热轧H型钢和部分T型钢》GB/T11263-2017；工字钢、角钢、槽钢符合GB/T 706-2016的规定；结构用无缝钢管符合GB/T8162-2008的规定。 3、热轧钢板和钢带的尺寸、外形、重量及允许偏差执行GB709-2019的规定。 4、钢板网应符合标准：QB/T11953-1989《钢板网》。

Sheet Sheet2
A1: 0零件采购清单(REV.0)
A2: 工程名称 | B2: 济南先行区崔寨片区新材料产业园A-6地块 | H2: 工程编号 | I2: 1
A3: 构件编号 | B3: 零件号 | C3: 型材 | D3: 数量 | E3: 长度(mm) | F3: 总长度（mm） | G3: 材质 | H3: 单重(kg) | I3: 总重(kg) | J3: 总重(kg)18个楼梯1 | K3: 表面积（㎡）
A4: LT-1 | B4: TN-1 | C4: PIP50*3 | D4: 28 | E4: 542 | F4: =D4*E4 -> 15176 | G4: Q235B | H4: 1.88 | I4: 52.77 | J4: =I4/14*18 -> 67.85 | K4: 0.09 | L4: =D4*H4 -> 52.64 | M4: 3.478 | N4: =E4*M4 -> 1885.076
A5: LT-1 | B5: TN-2 | C5: PIP50*3 | D5: 28 | E5: 3828 | F5: =D5*E5 -> 107184 | G5: Q235B | H5: 13.31 | I5: 372.7 | J5: =I5/14*18 -> 479.19 | K5: 0.6 | L5: 372.68 | M5: 3.478 | N5: 13313.784
A6: LT-2 | B6: TN-3 | C6: PIP50*3 | D6: 8 | E6: 2815 | F6: 22520 | G6: Q235B | H6: 9.79 | I6: 78.33 | J6: =I6 -> 78.33 | K6: 0.44 | L6: 78.32 | M6: 3.478 | N6: 9790.57
A7: LT-1 | B7: TN-4 | C7: L160*100*10 | D7: 28 | E7: 80 | F7: 2240 | G7: Q235B | H7: 1.59 | I7: 44.51 | J7: =I7/14*18 -> 57.23 | K7: 0.04 | L7: 44.52 | M7: 19.9 | N7: 1592
A8: LT-2 | B8: TN-4 | C8: L160*100*10 | D8: 8 | E8: 80 | F8: 640 | G8: Q235B | H8: 1.59 | I8: 12.72 | J8: =I8 -> 12.72 | K8: 0.04 | L8: 12.72 | M8: 19.9 | N8: 1592
A9: LT-1 | B9: TN-5 | C9: L90*56*8 | D9: 28 | E9: 80 | F9: 2240 | G9: Q235B | H9: 0.7 | I9: 19.66 | J9: =I9/14*18 -> 25.28 | K9: 0.02 | L9: 19.6 | N9: 0
A10: LT-2 | B10: TN-5 | C10: L90*56*8 | D10: 8 | E10: 80 | F10: 640 | G10: Q235B | H10: 0.7 | I10: 5.62 | J10: =I10 -> 5.62 | K10: 0.02 | L10: 5.6 | N10: 0
A11: LT-1 | B11: TP-1 | C11: PL8*150 | D11: 14 | E11: 2036 | F11: 28504 | G11: Q235B | H11: 18.35 | I11: 256.9 | J11: =I11/14*18 -> 330.30 | K11: 0.62 | L11: 256.9 | N11: 0
A12: LT-1 | B12: TP-2 | C12: PL8*150 | D12: 14 | E12: 2036 | F12: 28504 | G12: Q235B | H12: 18.35 | I12: 256.9 | J12: =I12/14*18 -> 330.30 | K12: 0.62 | L12: 256.9 | N12: 0
A13: LT-2 | B13: TP-3 | C13: PL8*150 | D13: 8 | E13: 916 | F13: 7328 | G13: Q235B | H13: 7.78 | I13: 62.23 | J13: =I13 -> 62.23 | K13: 0.26 | L13: 62.24 | N13: 0
A14: LT-1 | B14: TP-4 | C14: PL4.5*199.8 | D14: 14 | E14: 1200 | F14: 16800 | G14: Q235B | H14: 8.47 | I14: 118.59 | J14: =I14/14*18 -> 152.47 | K14: 0.49 | L14: 118.58 | N14: 0
A15: LT-2 | B15: TP-4 | C15: PL4.5*199.8 | D15: 4 | E15: 1200 | F15: 4800 | G15: Q235B | H15: 8.47 | I15: 33.88 | J15: =I15 -> 33.88 | K15: 0.49 | L15: 33.88 | N15: 0
A16: LT-1 | B16: TP-5 | C16: PL4.5*277.3 | D16: 84 | E16: 1200 | F16: 100800 | G16: Q235B | H16: 11.99 | I16: 1007.52 | J16: =I16/14*18 -> 1295.38 | K16: 0.69 | L16: 1007.16 | N16: 0
A17: LT-2 | B17: TP-5 | C17: PL4.5*277.3 | D17: 8 | E17: 1200 | F17: 9600 | G17: Q235B | H17: 11.99 | I17: 95.95 | J17: =I17 -> 95.95 | K17: 0.69 | L17: 95.92 | N17: 0
A18: LT-1 | B18: TP-6 | C18: PL4.5*268.3 | D18: 14 | E18: 1200 | F18: 16800 | G18: Q235B | H18: 11.61 | I18: 162.58 | J18: =I18/14*18 -> 209.03 | K18: 0.67 | L18: 162.54 | N18: 0
A19: LT-2 | B19: TP-7 | C19: PL4.5*272.8 | D19: 4 | E19: 1200 | F19: 4800 | G19: Q235B | H19: 11.8 | I19: 47.21 | J19: =I19 -> 47.21 | K19: 0.68 | L19: 47.2 | N19: 0
A20: 合计: | D20: 300 | E20: 件 | I20: 2628.07
A21: 备注：本清单计算的面积为1件零件的面积，请根据需要汇总零件的总面积。
E22: 单个零件长度
C30: 型材 | K30: 采购数量
C31: L90*56*8 | F31: 2880 | J31: 30.9 | K31: =J31*1.1 -> 33.99 | L31: =K31/1000 -> 0.03399
C32: L160*100*10 | F32: 2880 | J32: 69.95 | K32: =J32*1.1 -> 76.945 | L32: =K32/1000 -> 0.076945
C33: PIP50*3 | F33: 144880 | J33: 625.36 | K33: =J33*1.04 -> 650.3744 | L33: =K33/1000 -> 0.6503744
C34: PL4.5 | E34: 1200 | F34: 153600 | J34: 1833.93 | K34: =J34*1.08 -> 1980.6444 | L34: =K34/1000 -> 1.9806444
C35: 8 | J35: 722.83 | K35: =J35*1.1 -> 795.113 | L35: =K35/1000 -> 0.795113

Sheet Sheet3
